[Event "17th Memorial Lezcano Montalvo 2025"]
[Site "Gran Canaria"]
[Date "2025.04.20"]
[Round "9.19"]
[White "Castro Miguelez, Jose"]
[Black "Tytynnik, Artem"]
[Result "0-1"]
[Annotator "ChessBase"]
[ECO "B52"]
[WhiteElo "1846"]
[BlackElo "2209"]
[PlyCount "100"]
[EventDate "2025.04.13"]
[EventType "swiss"]
[EventCountry "ESP"]
[SourceTitle "playchess.com"]
[Source "ChessBase"]
[SourceQuality "1"]
[TimeControl "5400+30"]

1. e4 {[%emt 0:00:03]} c5 {[%emt 0:03:59]} 2. Nf3 {[%emt 0:00:06]} d6 {[%emt 0:00:04]} 3. Bb5+ {[%emt 0:00:05]} Bd7 {[%emt 0:00:20]} 4. Bxd7+ {[%emt 0:00:10]} Qxd7 {[%emt 0:00:25]} 5. c4 {[%emt 0:00:20]} Nc6 {[%emt 0:00:51]} 6. Nc3 {[%emt 0:00:37]} g6 {[%emt 0:00:48]} 7. d4 {[%emt 0:00:34]} cxd4 {[%emt 0:01:43]} 8. Nxd4 {[%emt 0:00:07]} Bg7 {[%emt 0:00:11]} 9. Be3 {[%emt 0:01:11]} Nf6 {[%emt 0:01:20]} 10. f3 {[%emt 0:00:39]} O-O {[%emt 0:01:05]} 11. O-O {[%emt 0:01:22]} Rac8 {[%emt 0:02:33]} 12. b3 {[%emt 0:02:19]} a6 {[%emt 0:04:06]} 13. Nxc6 {[%emt 0:15:19]} bxc6 {[%emt 0:00:38]} 14. Rc1 {[%emt 0:02:11]} Qb7 {[%emt 0:02:45]} 15. c5 {[%emt 0:20:44]} d5 {[%emt 0:02:49]} 16. exd5 {[%emt 0:08:13]} cxd5 {[%emt 0:01:11]} 17. Bd4 {[%emt 0:02:52]} e6 {[%emt 0:04:22]} 18. f4 {[%emt 0:09:00]} Qb4 {[%emt 0:08:10]} 19. a3 {[%emt 0:09:42]} Qxa3 {[%emt 0:00:41]} 20. Ra1 {[%emt 0:00:40]} Qb4 {[%emt 0:00:14]} 21. Rxa6 {[%emt 0:01:19]} Ng4 {[%emt 0:24:10]} 22. Ra4 {[%emt 0:04:10]} Bxd4+ {[%emt 0:00:28]} 23. Qxd4 {[%emt 0:00:06]} Qxd4+ {[%emt 0:04:00]} 24. Rxd4 {[%emt 0:00:08]} Rxc5 {[%emt 0:00:14]} 25. Na4 {[%emt 0:02:05]} Rc2 {[%emt 0:01:02]} 26. h3 {[%emt 0:01:10]} Ne3 {[%emt 0:01:18]} 27. Rf2 {[%emt 0:00:04]} Rc1+ {[%emt 0:01:11]} 28. Kh2 {[%emt 0:00:08]} Rb8 {[%emt 0:07:21]} 29. Rd3 {[%emt 0:02:09]} Nf1+ {[%emt 0:01:46]} 30. Kg1 {[%emt 0:00:04]} Rxb3 {[%emt 0:02:57]} 31. Nc5 {[%emt 0:03:06]} Ng3+ {[%emt 0:04:17]} 32. Kh2 {[%emt 0:00:09]} Rxd3 {[%emt 0:01:23]} 33. Nxd3 {[%emt 0:00:08]} Rc3 {[%emt 0:00:42]} 34. Rf3 {[%emt 0:01:12]} Ne4 {[%emt 0:00:58]} 35. Ne5 {[%emt 0:00:22]} Rxf3 {[%emt 0:00:18]} 36. Nxf3 {[%emt 0:00:08]} Kf8 {[%emt 0:01:31]} 37. Kg1 {[%emt 0:00:38]} Ke7 {[%emt 0:00:15]} 38. Kf1 {[%emt 0:00:05]} Kd6 {[%emt 0:00:44]} 39. Ke2 {[%emt 0:00:40]} f6 {[%emt 0:00:32]} 40. Ke3 {[%emt 0:00:49]} Ng3 {[%emt 0:00:45]} 41. Kd4 {[%emt 0:01:02]} e5+ {[%emt 0:00:37]} 42. fxe5+ {[%emt 0:00:05]} fxe5+ {[%emt 0:00:03]} 43. Ke3 {[%emt 0:00:29]} d4+ {[%emt 0:00:31]} 44. Kf2 {[%emt 0:01:22]} Ne4+ {[%emt 0:00:09]} 45. Ke2 {[%emt 0:00:07]} Kd5 {[%emt 0:00:11]} 46. g4 {[%emt 0:00:24]} h6 {[%emt 0:02:45]} 47. h4 {[%emt 0:00:11]} g5 {[%emt 0:00:47]} 48. hxg5 {[%emt 0:00:13]} Nxg5 {[%emt 0:00:28]} 49. Nh4 {[%emt 0:00:19]} Ke4 {[%emt 0:00:52]} 50. Nf5 {[%emt 0:00:07]} Nf7 {[%emt 0:00:15]} 0-1

[Event "17th Memorial Lezcano Montalvo 2025"]
[Site "Gran Canaria"]
[Date "2025.04.20"]
[Round "9.20"]
[White "De La Cruz Perez, Carlos"]
[Black "Paquico Rodriguez, Ivan"]
[Result "1/2-1/2"]
[Annotator "ChessBase"]
[ECO "A41"]
[WhiteElo "1835"]
[BlackElo "2202"]
[PlyCount "96"]
[EventDate "2025.04.13"]
[EventType "swiss"]
[EventCountry "ESP"]
[SourceTitle "playchess.com"]
[Source "ChessBase"]
[SourceQuality "1"]
[TimeControl "5400+30"]

1. Nf3 {[%emt 0:00:05]} d6 {[%emt 0:02:12]} 2. d4 {[%emt 0:00:27]} g6 {[%emt 0:00:09]} 3. c4 {[%emt 0:00:12]} Bg7 {[%emt 0:00:06]} 4. Nc3 {[%emt 0:00:11]} Nd7 {[%emt 0:03:58]} 5. g3 {[%emt 0:00:14]} e5 {[%emt 0:00:25]} 6. Bg2 {[%emt 0:00:18]} Ne7 {[%emt 0:02:52]} 7. dxe5 {[%emt 0:00:29]} dxe5 {[%emt 0:01:32]} 8. O-O {[%emt 0:00:11]} O-O {[%emt 0:00:05]} 9. Qc2 {[%emt 0:00:08]} Nf5 {[%emt 0:05:09]} 10. Rd1 {[%emt 0:03:36]} c6 {[%emt 0:02:09]} 11. e3 {[%emt 0:11:50]} Qe7 {[%emt 0:04:18]} 12. b3 {[%emt 0:03:08]} h5 {[%emt 0:06:12]} 13. Bb2 {[%emt 0:04:28]} Re8 {[%emt 0:04:42]} 14. Ne4 {[%emt 0:10:54]} Nf6 {[%emt 0:05:39]} 15. Nfg5 {[%emt 0:01:23]} Nxe4 {[%emt 0:03:44]} 16. Nxe4 {[%emt 0:00:05]} Be6 {[%emt 0:01:30]} 17. Rd2 {[%emt 0:06:59]} h4 {[%emt 0:03:16]} 18. Rad1 {[%emt 0:03:52]} Nh6 {[%emt 0:07:24]} 19. Qc1 {[%emt 0:01:52]} hxg3 {[%emt 0:13:41]} 20. hxg3 {[%emt 0:00:16]} Qc7 {[%emt 0:06:49]} 21. Ba3 {[%emt 0:10:28]} Bg4 {[%emt 0:01:08]} 22. f3 {[%emt 0:03:02]} Be6 {[%emt 0:00:09]} 23. Kf2 {[%emt 0:08:40]} Bf5 {[%emt 0:10:11]} 24. Nd6 {[%emt 0:02:04]} Red8 {[%emt 0:02:47]} 25. Nxf5 {[%emt 0:02:55]} Nxf5 {[%emt 0:00:19]} 26. g4 {[%emt 0:00:08]} Nh4 {[%emt 0:02:00]} 27. Bd6 {[%emt 0:01:31]} Qb6 {[%emt 0:02:55]} 28. c5 {[%emt 0:02:22]} Qb4 {[%emt 0:00:32]} 29. Bf1 {[%emt 0:01:01]} e4 {[%emt 0:01:14]} 30. Rd4 {[%emt 0:00:24]} Qa5 {[%emt 0:06:55]} 31. Ra4 {[%emt 0:00:36]} Qc3 {[%emt 0:00:04]} 32. Qxc3 {[%emt 0:01:41]} Bxc3 {[%emt 0:00:01]} 33. Rxe4 {[%emt 0:00:18]} g5 {[%emt 0:00:37]} 34. Rd3 {[%emt 0:04:58]} Bf6 {[%emt 0:00:12]} 35. Be7 {[%emt 0:00:41]} Rxd3 {[%emt 0:01:53]} 36. Bxd3 {[%emt 0:00:07]} Kg7 {[%emt 0:00:07]} 37. Bxf6+ {[%emt 0:00:17]} Kxf6 {[%emt 0:00:01]} 38. Rd4 {[%emt 0:02:54]} Ke7 {[%emt 0:00:12]} 39. Kg3 {[%emt 0:00:27]} b6 {[%emt 0:00:20]} 40. cxb6 {[%emt 0:00:36]} axb6 {[%emt 0:00:01]} 41. a4 {[%emt 0:00:35]} Ra5 {[%emt 0:00:42]} 42. Rb4 {[%emt 0:01:03]} Rd5 {[%emt 0:01:21]} 43. Be4 {[%emt 0:00:14]} Rd2 {[%emt 0:01:00]} 44. Rxb6 {[%emt 0:00:23]} Ng2 {[%emt 0:00:22]} 45. Rxc6 {[%emt 0:01:23]} Nxe3 {[%emt 0:00:03]} 46. f4 {[%emt 0:03:23]} Nf1+ {[%emt 0:00:27]} 47. Kf3 {[%emt 0:00:03]} Nh2+ {[%emt 0:00:04]} 48. Ke3 {[%emt 0:00:21]} Nf1+ {[%emt 0:03:01]} 1/2-1/2

[Event "17th Memorial Lezcano Montalvo 2025"]
[Site "Gran Canaria"]
[Date "2025.04.20"]
[Round "9.21"]
[White "Krilovs, Nikolajs"]
[Black "Basualdo De Ornelas, Jorge"]
[Result "1-0"]
[Annotator "NA"]
[ECO "E06"]
[WhiteElo "2112"]
[BlackElo "1794"]
[PlyCount "81"]
[EventDate "2025.04.13"]
[EventType "swiss"]
[EventCountry "ESP"]
[SourceTitle "playchess.com"]
[Source "ChessBase"]
[SourceQuality "1"]
[TimeControl "5400+30"]

1. d4 {[%emt 0:00:03]} d5 {[%emt 0:00:08]} 2. c4 {[%emt 0:00:11]} e6 {[%emt 0:00:18]} 3. Nf3 {[%emt 0:00:07]} Nf6 {[%emt 0:00:22]} 4. g3 {[%emt 0:00:07]} Be7 {[%emt 0:00:08]} 5. Bg2 {[%emt 0:00:07]} O-O {[%emt 0:00:02]} 6. Qc2 {[%emt 0:00:08]} c6 {[%emt 0:00:47]} 7. O-O {[%emt 0:00:09]} b6 {[%emt 0:00:13]} 8. cxd5 {[%emt 0:02:38]} exd5 {[%emt 0:00:21]} 9. Nc3 {[%emt 0:01:52]} a5 {[%emt 0:00:02]} 10. Re1 {[%emt 0:01:05]} Na6 {[%emt 0:04:03]} 11. Bf4 {[%emt 0:03:05]} Nb4 {[%emt 0:02:39]} 12. Qd1 {[%emt 0:03:44]} Bf5 {[%emt 0:03:12]} 13. Rc1 {[%emt 0:03:31]} Nh5 {[%emt 0:13:44]} 14. Be3 {[%emt 0:02:29]} Nf6 {[%emt 0:02:06]} 15. a3 {[%emt 0:02:17]} Na6 {[%emt 0:00:11]} 16. Ne5 {[%emt 0:03:02]} Rc8 {[%emt 0:01:05]} 17. h3 {[%emt 0:01:03]} h6 {[%emt 0:03:13]} 18. g4 {[%emt 0:03:49]} Bh7 {[%emt 0:00:30]} 19. Qb3 {[%emt 0:02:19]} Nb8 {[%emt 0:05:03]} 20. f4 {[%emt 0:02:59]} Nbd7 {[%emt 0:02:10]} 21. Rf1 {[%emt 0:13:12]} Nxe5 {[%emt 0:13:37]} 22. dxe5 {[%emt 0:08:22]} d4 {[%emt 0:00:30]} 23. Rfd1 {[%emt 0:06:07]} Nd5 {[%emt 0:03:13]} 24. Nxd5 {[%emt 0:01:51]} cxd5 {[%emt 0:00:04]} 25. Bxd4 {[%emt 0:00:58]} b5 {[%emt 0:07:38]} 26. f5 {[%emt 0:03:49]} h5 {[%emt 0:03:49]} 27. Qxb5 {[%emt 0:02:05]} hxg4 {[%emt 0:01:57]} 28. hxg4 {[%emt 0:00:05]} Bg5 {[%emt 0:00:15]} 29. e3 {[%emt 0:01:45]} Rb8 {[%emt 0:00:18]} 30. Qxd5 {[%emt 0:00:59]} Qe8 {[%emt 0:04:35]} 31. Qc6 {[%emt 0:00:50]} Bxe3+ {[%emt 0:05:35]} 32. Bxe3 {[%emt 0:00:15]} Qxe5 {[%emt 0:00:05]} 33. Bd4 {[%emt 0:00:32]} Qf4 {[%emt 0:01:07]} 34. Qe4 {[%emt 0:01:51]} Qh6 {[%emt 0:00:54]} 35. Rc6 {[%emt 0:00:56]} Qh4 {[%emt 0:05:40]} 36. Bc3 {[%emt 0:01:12]} Rfe8 {[%emt 0:01:09]} 37. Qd4 {[%emt 0:00:08]} f6 {[%emt 0:01:38]} 38. Bd5+ {[%emt 0:00:18]} Kh8 {[%emt 0:00:09]} 39. Rxf6 {[%emt 0:00:31]} Re2 {[%emt 0:15:51]} 40. Rf8+ {[%emt 0:00:14]} Rxf8 {[%emt 0:00:54]} 41. Qxg7# {[%emt 0:00:12]} 1-0

[Event "17th Memorial Lezcano Montalvo 2025"]
[Site "Gran Canaria"]
[Date "2025.04.20"]
[Round "9.22"]
[White "Blanco Barros, Juan Carlos"]
[Black "Barlov, Dragan"]
[Result "0-1"]
[Annotator "ChessBase"]
[ECO "A08"]
[WhiteElo "1941"]
[BlackElo "2351"]
[PlyCount "54"]
[EventDate "2025.04.13"]
[EventType "swiss"]
[EventCountry "ESP"]
[SourceTitle "playchess.com"]
[Source "ChessBase"]
[SourceQuality "1"]
[TimeControl "5400+30"]

1. e4 {[%emt 0:00:30]} c5 {[%emt 0:01:06]} 2. Nf3 {[%emt 0:00:14]} e6 {[%emt 0:00:24]} 3. d3 {[%emt 0:00:14]} Nc6 {[%emt 0:00:54]} 4. g3 {[%emt 0:00:12]} d5 {[%emt 0:00:15]} 5. Nbd2 {[%emt 0:00:14]} Bd6 {[%emt 0:00:57]} 6. Bg2 {[%emt 0:00:17]} Nge7 {[%emt 0:00:08]} 7. O-O {[%emt 0:00:26]} O-O {[%emt 0:00:08]} 8. Re1 {[%emt 0:02:53]} Bc7 {[%emt 0:06:19]} 9. c3 {[%emt 0:03:41]} b6 {[%emt 0:07:23]} 10. Qc2 {[%emt 0:04:17]} a5 {[%emt 0:17:20]} 11. a4 {[%emt 0:02:28]} Ba6 {[%emt 0:03:08]} 12. Bf1 {[%emt 0:01:41]} Qd7 {[%emt 0:04:05]} 13. h4 {[%emt 0:11:34]} Rad8 {[%emt 0:05:49]} 14. Nh2 {[%emt 0:08:51]} f5 {[%emt 0:04:21]} 15. exd5 {[%emt 0:07:33]} Nxd5 {[%emt 0:01:41]} 16. Nc4 {[%emt 0:00:49]} e5 {[%emt 0:07:55]} 17. Nf3 {[%emt 0:06:03]} f4 {[%emt 0:09:40]} 18. Ncxe5 {[%emt 0:04:32]} Nxe5 {[%emt 0:00:18]} 19. Nxe5 {[%emt 0:00:08]} Bxe5 {[%emt 0:03:34]} 20. Rxe5 {[%emt 0:00:13]} fxg3 {[%emt 0:00:06]} 21. fxg3 {[%emt 0:00:14]} Rxf1+ {[%emt 0:01:37]} 22. Kxf1 {[%emt 0:00:16]} Nb4 {[%emt 0:00:23]} 23. Qg2 {[%emt 0:17:21]} Nxd3 {[%emt 0:03:02]} 24. Re2 {[%emt 0:01:29]} Bb7 {[%emt 0:01:22]} 25. Qh2 {[%emt 0:01:15]} Qf5+ {[%emt 0:07:20]} 26. Kg1 {[%emt 0:09:49]} Ne5 {[%emt 0:00:55]} 27. Rxe5 {[%emt 0:00:14]} Rd1+ {[%emt 0:00:16]} 0-1

[Event "17th Memorial Lezcano Montalvo 2025"]
[Site "Gran Canaria"]
[Date "2025.04.20"]
[Round "9.23"]
[White "Matnadze Bujiashvili, Ann"]
[Black "de Leon Navarro, Claudio"]
[Result "1-0"]
[Annotator "ChessBase"]
[ECO "E06"]
[WhiteElo "2329"]
[BlackElo "1918"]
[PlyCount "45"]
[EventDate "2025.04.13"]
[EventType "swiss"]
[EventCountry "ESP"]
[SourceTitle "playchess.com"]
[Source "ChessBase"]
[SourceQuality "1"]
[TimeControl "5400+30"]

1. d4 {[%emt 0:00:07]} Nf6 {[%emt 0:12:13]} 2. Nf3 {[%emt 0:00:18]} e6 {[%emt 0:00:17]} 3. c4 {[%emt 0:00:06]} d5 {[%emt 0:00:33]} 4. g3 {[%emt 0:00:23]} Be7 {[%emt 0:00:16]} 5. Bg2 {[%emt 0:00:07]} O-O {[%emt 0:00:12]} 6. Nc3 {[%emt 0:00:05]} c6 {[%emt 0:00:20]} 7. O-O {[%emt 0:00:07]} b6 {[%emt 0:00:29]} 8. a4 {[%emt 0:00:34]} Ba6 {[%emt 0:09:54]} 9. Ne5 {[%emt 0:01:50]} Qc8 {[%emt 0:01:39]} 10. Bf4 {[%emt 0:01:19]} Nbd7 {[%emt 0:03:01]} 11. Rc1 {[%emt 0:03:13]} Qb7 {[%emt 0:08:00]} 12. cxd5 {[%emt 0:14:13]} cxd5 {[%emt 0:01:59]} 13. Nb5 {[%emt 0:01:06]} Bxb5 {[%emt 0:00:51]} 14. axb5 {[%emt 0:00:14]} Nxe5 {[%emt 0:01:09]} 15. Bxe5 {[%emt 0:00:07]} Rac8 {[%emt 0:01:17]} 16. Qa4 {[%emt 0:00:48]} Rxc1 {[%emt 0:10:54]} 17. Rxc1 {[%emt 0:00:02]} Rc8 {[%emt 0:00:36]} 18. Rc6 {[%emt 0:06:35]} g5 {[%emt 0:22:44]} 19. Qc2 {[%emt 0:00:57]} Rxc6 {[%emt 0:00:19]} 20. Qxc6 {[%emt 0:00:31]} Qd7 {[%emt 0:01:54]} 21. Bxf6 {[%emt 0:00:18]} Qxc6 {[%emt 0:00:06]} 22. bxc6 {[%emt 0:00:06]} Bxf6 {[%emt 0:00:15]} 23. c7 {[%emt 0:00:06]} 1-0

[Event "17th Memorial Lezcano Montalvo 2025"]
[Site "Gran Canaria"]
[Date "2025.04.20"]
[Round "9.24"]
[White "Ramos Santana, Marcelino"]
[Black "Hernando Rodrigo, Jose Maria"]
[Result "0-1"]
[Annotator "ChessBase"]
[ECO "B72"]
[WhiteElo "1903"]
[BlackElo "2256"]
[PlyCount "56"]
[EventDate "2025.04.13"]
[EventType "swiss"]
[EventCountry "ESP"]
[SourceTitle "playchess.com"]
[Source "ChessBase"]
[SourceQuality "1"]
[TimeControl "5400+30"]

1. e4 {[%emt 0:00:15]} d6 {[%emt 0:00:13]} 2. d4 {[%emt 0:00:26]} Nf6 {[%emt 0:00:09]} 3. Nc3 {[%emt 0:00:40]} g6 {[%emt 0:00:20]} 4. Nf3 {[%emt 0:01:36]} Bg7 {[%emt 0:00:22]} 5. h3 {[%emt 0:00:08]} c5 {[%emt 0:05:02]} 6. Be3 {[%emt 0:14:31]} cxd4 {[%emt 0:02:51]} 7. Nxd4 {[%emt 0:00:13]} O-O {[%emt 0:00:13]} 8. Be2 {[%emt 0:00:44]} Nc6 {[%emt 0:00:37]} 9. Qd2 {[%emt 0:00:14]} Bd7 {[%emt 0:00:50]} 10. h4 {[%emt 0:02:02]} h5 {[%emt 0:02:22]} 11. O-O-O {[%emt 0:02:36]} Rc8 {[%emt 0:01:40]} 12. f3 {[%emt 0:00:37]} Ne5 {[%emt 0:00:26]} 13. g4 {[%emt 0:05:56]} hxg4 {[%emt 0:10:58]} 14. h5 {[%emt 0:01:54]} gxf3 {[%emt 0:00:13]} 15. h6 {[%emt 0:15:24]} fxe2 {[%emt 0:14:29]} 16. hxg7 {[%emt 0:01:15]} exd1=Q+ {[%emt 0:00:53]} 17. Kxd1 {[%emt 0:00:48]} Kxg7 {[%emt 0:15:49]} 18. Bh6+ {[%emt 0:00:03]} Kg8 {[%emt 0:00:11]} 19. Nd5 {[%emt 0:00:20]} Nxd5 {[%emt 0:09:02]} 20. exd5 {[%emt 0:04:00]} Nc4 {[%emt 0:08:49]} 21. Qh2 {[%emt 0:00:47]} Nxb2+ {[%emt 0:01:04]} 22. Kc1 {[%emt 0:08:08]} Nd3+ {[%emt 0:00:50]} 23. Kb1 {[%emt 0:00:21]} Qb6+ {[%emt 0:01:33]} 24. Nb3 {[%emt 0:00:37]} Qf2 {[%emt 0:03:09]} 25. Bxf8 {[%emt 0:04:06]} Qxh2 {[%emt 0:00:07]} 26. Rxh2 {[%emt 0:00:08]} Kxf8 {[%emt 0:00:08]} 27. cxd3 {[%emt 0:02:23]} Bf5 {[%emt 0:00:41]} 28. Rd2 {[%emt 0:00:25]} Rc3 {[%emt 0:00:21]} 0-1

[Event "17th Memorial Lezcano Montalvo 2025"]
[Site "Gran Canaria"]
[Date "2025.04.20"]
[Round "9.25"]
[White "Estremera Panos, Sergio"]
[Black "Hernandez Guerra, Luna Yue"]
[Result "1-0"]
[Annotator "ChessBase"]
[ECO "E52"]
[WhiteElo "2195"]
[BlackElo "1897"]
[PlyCount "47"]
[EventDate "2025.04.13"]
[EventType "swiss"]
[EventCountry "ESP"]
[SourceTitle "playchess.com"]
[Source "ChessBase"]
[SourceQuality "1"]
[TimeControl "5400+30"]

1. d4 {[%emt 0:00:07]} Nf6 {[%emt 0:00:05]} 2. Nf3 {[%emt 0:00:23]} e6 {[%emt 0:00:22]} 3. e3 {[%emt 0:00:16]} b6 {[%emt 0:00:30]} 4. c4 {[%emt 0:00:48]} Bb7 {[%emt 0:00:31]} 5. Nc3 {[%emt 0:00:08]} Bb4 {[%emt 0:00:37]} 6. Bd2 {[%emt 0:01:22]} O-O {[%emt 0:01:32]} 7. Bd3 {[%emt 0:00:09]} d5 {[%emt 0:02:18]} 8. cxd5 {[%emt 0:00:19]} exd5 {[%emt 0:00:06]} 9. O-O {[%emt 0:00:54]} a6 {[%emt 0:03:46]} 10. Ne5 {[%emt 0:04:23]} Bd6 {[%emt 0:04:09]} 11. f4 {[%emt 0:03:21]} c5 {[%emt 0:01:25]} 12. Qf3 {[%emt 0:04:14]} Nc6 {[%emt 0:09:45]} 13. Qh3 {[%emt 0:15:20]} h6 {[%emt 0:04:23]} 14. Rf3 {[%emt 0:38:30]} cxd4 {[%emt 0:03:34]} 15. exd4 {[%emt 0:00:09]} Nxd4 {[%emt 0:02:15]} 16. Rg3 {[%emt 0:00:07]} h5 {[%emt 0:16:05]} 17. Re1 {[%emt 0:01:23]} Re8 {[%emt 0:06:07]} 18. Qh4 {[%emt 0:01:42]} Ne4 {[%emt 0:03:58]} 19. Qxh5 {[%emt 0:01:49]} Bxe5 {[%emt 0:09:11]} 20. fxe5 {[%emt 0:08:34]} Re6 {[%emt 0:02:31]} 21. Rh3 {[%emt 0:01:54]} Kf8 {[%emt 0:00:43]} 22. Bxe4 {[%emt 0:04:20]} dxe4 {[%emt 0:00:08]} 23. Qh8+ {[%emt 0:00:10]} Ke7 {[%emt 0:00:17]} 24. Bg5+ {[%emt 0:00:09]} 1-0

[Event "17th Memorial Lezcano Montalvo 2025"]
[Site "Gran Canaria"]
[Date "2025.04.20"]
[Round "9.26"]
[White "Posso Cangrejo, Sergio David"]
[Black "Bethencourt Hernandez, Alberto"]
[Result "0-1"]
[Annotator "RC"]
[ECO "B09"]
[WhiteElo "1878"]
[BlackElo "2122"]
[PlyCount "154"]
[EventDate "2025.04.13"]
[EventType "swiss"]
[EventCountry "ESP"]
[SourceTitle "playchess.com"]
[Source "ChessBase"]
[SourceQuality "1"]
[TimeControl "5400+30"]

1. e4 {[%emt 0:00:03]} g6 {[%emt 0:03:00]} 2. d4 {[%emt 0:00:11]} Bg7 {[%emt 0:00:05]} 3. Nc3 {[%emt 0:00:08]} d6 {[%emt 0:00:08]} 4. f4 {[%emt 0:00:12]} Nf6 {[%emt 0:01:33]} 5. Nf3 {[%emt 0:00:43]} O-O {[%emt 0:01:56]} 6. Bd3 {[%emt 0:01:04]} Na6 {[%emt 0:00:10]} 7. O-O {[%emt 0:00:47]} c5 {[%emt 0:02:02]} 8. d5 {[%emt 0:01:48]} Nc7 {[%emt 0:00:39]} 9. h3 {[%emt 0:06:19]} b5 {[%emt 0:03:45]} 10. Nxb5 {[%emt 0:14:26]} Nxb5 {[%emt 0:00:08]} 11. Bxb5 {[%emt 0:00:04]} Nxe4 {[%emt 0:00:09]} 12. Bd3 {[%emt 0:01:12]} Ng3 {[%emt 0:08:13]} 13. Re1 {[%emt 0:00:17]} h5 {[%emt 0:00:20]} 14. Kh2 {[%emt 0:02:47]} Nf5 {[%emt 0:00:06]} 15. c3 {[%emt 0:00:55]} Rb8 {[%emt 0:03:30]} 16. Qc2 {[%emt 0:02:16]} Nh6 {[%emt 0:13:34]} 17. Ng5 {[%emt 0:14:54]} Bf5 {[%emt 0:00:23]} 18. Bxf5 {[%emt 0:00:31]} Nxf5 {[%emt 0:00:08]} 19. g4 {[%emt 0:00:15]} hxg4 {[%emt 0:01:02]} 20. hxg4 {[%emt 0:00:08]} Nh6 {[%emt 0:00:08]} 21. Kg3 {[%emt 0:00:12]} Qd7 {[%emt 0:04:42]} 22. Qe2 {[%emt 0:00:19]} c4 {[%emt 0:02:27]} 23. Qf3 {[%emt 0:06:35]} Rb5 {[%emt 0:04:18]} 24. a4 {[%emt 0:08:06]} Ra5 {[%emt 0:02:37]} 25. Re2 {[%emt 0:03:14]} Rb8 {[%emt 0:03:39]} 26. Be3 {[%emt 0:02:31]} Rbb5 {[%emt 0:44:48]} 27. Rh1 {[%emt 0:02:31]} Rxd5 {[%emt 0:00:00]} 28. Reh2 {[%emt 0:00:02]} e5 {[%emt 0:00:00]} 29. Rxh6 {[%emt 0:05:05]} exf4+ {[%emt 0:00:00]} 30. Bxf4 {[%emt 0:01:36]} Bxh6 {[%emt 0:00:00]} 31. Rxh6 {[%emt 0:00:02]} Rd3 {[%emt 0:00:00]} 32. Be3 {[%emt 0:00:22]} Re5 {[%emt 0:00:00]} 33. Ne4 {[%emt 0:08:22]} f5 {[%emt 0:00:00]} 34. Nf6+ {[%emt 0:04:17]} Kg7 {[%emt 0:00:00]} 35. Nxd7 {[%emt 0:00:17]} Rexe3 {[%emt 0:00:00]} 36. Qxe3 {[%emt 0:01:57]} Rxe3+ {[%emt 0:00:00]} 37. Kf2 {[%emt 0:00:38]} Re7 {[%emt 0:00:00]} 38. Nf6 {[%emt 0:01:31]} Kxf6 {[%emt 0:00:00]} 39. gxf5 {[%emt 0:00:38]} Kxf5 {[%emt 0:00:00]} 40. Kf3 {[%emt 0:01:22]} Re1 {[%emt 0:00:00]} 41. Rh7 {[%emt 0:01:25]} Rb1 {[%emt 0:00:00]} 42. Rb7 {[%emt 0:00:06]} a6 {[%emt 0:00:00]} 43. Rb6 {[%emt 0:01:37]} Ke5 {[%emt 0:00:00]} 44. Ke3 {[%emt 0:02:09]} Ra1 {[%emt 0:01:01]} 45. Rxa6 {[%emt 0:00:17]} Ra2 {[%emt 0:00:03]} 46. Rb6 {[%emt 0:03:55]} Rxa4 {[%emt 0:00:05]} 47. Rb5+ {[%emt 0:00:38]} d5 {[%emt 0:00:04]} 48. Rb8 {[%emt 0:00:05]} Ra6 {[%emt 0:02:24]} 49. Re8+ {[%emt 0:03:28]} Re6 {[%emt 0:07:53]} 50. Rb8 {[%emt 0:00:58]} Kd6+ {[%emt 0:00:00]} 51. Kf3 {[%emt 0:00:15]} Kc7 {[%emt 0:00:00]} 52. Rb5 {[%emt 0:00:09]} Kc6 {[%emt 0:00:00]} 53. Rb8 {[%emt 0:00:01]} Re7 {[%emt 0:00:00]} 54. Rg8 {[%emt 0:00:43]} Re6 {[%emt 0:00:00]} 55. Rb8 {[%emt 0:00:35]} Kc5 {[%emt 0:00:00]} 56. Rc8+ {[%emt 0:02:23]} Rc6 {[%emt 0:00:00]} 57. Rg8 {[%emt 0:00:59]} Rb6 {[%emt 0:00:00]} 58. Rc8+ {[%emt 0:00:18]} Kd6 {[%emt 0:00:00]} 59. Rg8 {[%emt 0:00:09]} Rxb2 {[%emt 0:00:00]} 60. Rxg6+ {[%emt 0:00:02]} Kc5 {[%emt 0:00:00]} 61. Rg8 {[%emt 0:01:38]} Rc2 {[%emt 0:00:00]} 62. Rc8+ {[%emt 0:00:06]} Kd6 {[%emt 0:00:04]} 63. Rd8+ {[%emt 0:00:17]} Kc6 {[%emt 0:00:03]} 64. Ke3 {[%emt 0:00:35]} Rxc3+ {[%emt 0:00:06]} 65. Kd4 {[%emt 0:00:51]} Rd3+ {[%emt 0:00:05]} 66. Ke5 {[%emt 0:00:04]} Kc5 {[%emt 0:00:10]} 67. Rb8 {[%emt 0:00:24]} Re3+ {[%emt 0:00:08]} 68. Kf4 {[%emt 0:00:07]} Rb3 {[%emt 0:00:10]} 69. Rh8 {[%emt 0:00:24]} Kd4 {[%emt 0:00:14]} 70. Rh1 {[%emt 0:00:07]} Rd3 {[%emt 0:00:09]} 71. Ra1 {[%emt 0:00:14]} Rd2 {[%emt 0:00:07]} 72. Kf3 {[%emt 0:00:29]} Kd3 {[%emt 0:00:08]} 73. Ra5 {[%emt 0:00:19]} d4 {[%emt 0:00:05]} 74. Ra3+ {[%emt 0:00:19]} c3 {[%emt 0:00:05]} 75. Rb3 {[%emt 0:00:09]} Rd1 {[%emt 0:00:18]} 76. Kf2 {[%emt 0:00:10]} Kd2 {[%emt 0:00:08]} 77. Rb4 {[%emt 0:00:12]} d3 {[%emt 0:00:05]} 0-1